[Event "Kvibergspelen September 2019"]
[Site "Prioritet Serneke Arena, Krutvagen 2, Gothenburg, Sweden"]
[Date "2019.09.28"]
[Round "6.18"]
[White "Lyngsjo, Hakan"]
[Black "Lindbol, Aleksander"]
[Result "0-1"]
[TimeControl "15 minutes + 5 seconds per move from move one (Round 1 - 4) / 90 minutes + 30 seconds per move from move one (Round 5 - 8)"]
[WhiteFideId "1701649"]
[BlackFideId "1520644"]
[WhiteElo "2031"]
[BlackElo "2216"]

1. e4 {[%clk 01:30:56]} {[%emt 00:00:02]} c6 {[%clk 01:29:53]} {[%emt
00:01:07]} 2. d4 {[%clk 01:29:53]} {[%emt 00:01:33]} d5 {[%clk 01:29:58]}
{[%emt 00:00:25]} 3. exd5 {[%clk 01:30:18]} {[%emt 00:00:06]} cxd5 {[%clk
01:30:23]} {[%emt 00:00:05]} 4. c4 {[%clk 01:30:44]} {[%emt 00:00:04]} Nf6
{[%clk 01:30:46]} {[%emt 00:00:06]} 5. Nc3 {[%clk 01:31:12]} {[%emt 00:00:03]}
Nc6 {[%clk 01:31:10]} {[%emt 00:00:05]} 6. Bg5 {[%clk 01:31:29]} {[%emt
00:00:13]} dxc4 {[%clk 01:24:36]} {[%emt 00:07:05]} 7. Bxc4 {[%clk 01:26:49]}
{[%emt 00:05:09]} e6 {[%clk 01:14:24]} {[%emt 00:10:42]} 8. Nf3 {[%clk
01:25:43]} {[%emt 00:01:36]} Be7 {[%clk 01:14:47]} {[%emt 00:00:08]} 9. O-O
{[%clk 01:24:47]} {[%emt 00:01:26]} O-O {[%clk 01:14:56]} {[%emt 00:00:20]} 10.
a3 {[%clk 01:13:58]} {[%emt 00:11:19]} Nd5 {[%clk 01:04:05]} {[%emt 00:11:22]}
11. Bxe7 {[%clk 01:10:46]} {[%emt 00:03:43]} Nxc3 {[%clk 01:02:46]} {[%emt
00:01:49]} 12. bxc3 {[%clk 01:06:57]} {[%emt 00:04:19]} Nxe7 {[%clk 01:03:00]}
{[%emt 00:00:15]} 13. Bb3 {[%clk 01:05:33]} {[%emt 00:01:54]} b6 {[%clk
01:00:42]} {[%emt 00:02:49]} 14. Ne5 {[%clk 01:03:13]} {[%emt 00:02:49]} Bb7
{[%clk 00:59:19]} {[%emt 00:01:54]} 15. Re1 {[%clk 00:59:16]} {[%emt 00:04:26]}
Ng6 {[%clk 00:55:06]} {[%emt 00:04:44]} 16. Qg4 {[%clk 00:49:44]} {[%emt
00:10:01]} Nxe5 {[%clk 00:52:42]} {[%emt 00:02:53]} 17. Rxe5 {[%clk 00:49:55]}
{[%emt 00:00:19]} Rc8 {[%clk 00:52:51]} {[%emt 00:00:22]} 18. Re3 {[%clk
00:42:14]} {[%emt 00:08:11]} Bd5 {[%clk 00:45:59]} {[%emt 00:07:23]} 19. Bc2
{[%clk 00:40:07]} {[%emt 00:02:37]} h6 {[%clk 00:46:16]} {[%emt 00:00:12]} 20.
Rg3 {[%clk 00:34:31]} {[%emt 00:06:05]} Qf6 {[%clk 00:45:20]} {[%emt 00:01:26]}
21. Qe2 {[%clk 00:34:15]} {[%emt 00:00:46]} Rc7 {[%clk 00:40:28]} {[%emt
00:05:22]} 22. Qd3 {[%clk 00:31:41]} {[%emt 00:03:04]} Rfc8 {[%clk 00:39:02]}
{[%emt 00:01:56]} 23. Qh7+ {[%clk 00:29:08]} {[%emt 00:03:03]} Kf8 {[%clk
00:39:25]} {[%emt 00:00:07]} 24. Ba4 {[%clk 00:28:32]} {[%emt 00:01:05]} a6
{[%clk 00:36:38]} {[%emt 00:03:18]} 25. Qh8+ {[%clk 00:19:47]} {[%emt
00:09:15]} Ke7 {[%clk 00:36:13]} {[%emt 00:00:56]} 26. Qxg7 {[%clk 00:20:12]}
{[%emt 00:00:05]} Qxg7 {[%clk 00:34:33]} {[%emt 00:02:09]} 27. Rxg7 {[%clk
00:20:38]} {[%emt 00:00:04]} Rxc3 {[%clk 00:34:22]} {[%emt 00:00:42]} 28. Kf1
{[%clk 00:20:44]} {[%emt 00:00:23]} Rc1+ {[%clk 00:32:52]} {[%emt 00:02:00]} 29.
Rxc1 {[%clk 00:21:06]} {[%emt 00:00:08]} Rxc1+ {[%clk 00:33:18]} {[%emt
00:00:04]} 30. Ke2 {[%clk 00:21:31]} {[%emt 00:00:05]} Ra1 {[%clk 00:33:38]}
{[%emt 00:00:09]} 31. Rg3 {[%clk 00:21:00]} {[%emt 00:01:01]} Ra2+ {[%clk
00:32:28]} {[%emt 00:01:41]} 32. Ke1 {[%clk 00:21:04]} {[%emt 00:00:26]} b5
{[%clk 00:32:27]} {[%emt 00:00:31]} 33. Bd1 {[%clk 00:20:42]} {[%emt 00:00:52]}
a5 {[%clk 00:32:27]} {[%emt 00:00:30]} 34. h4 {[%clk 00:18:12]} {[%emt
00:02:59]} Bc4 {[%clk 00:27:18]} {[%emt 00:05:40]} 35. Rc3 {[%clk 00:17:19]}
{[%emt 00:01:23]} Kd6 {[%clk 00:19:52]} {[%emt 00:07:56]} 36. g4 {[%clk
00:16:03]} {[%emt 00:01:45]} Bd5 {[%clk 00:12:36]} {[%emt 00:07:47]} 37. Bf3
{[%clk 00:13:36]} {[%emt 00:02:57]} b4 {[%clk 00:11:01]} {[%emt 00:02:05]} 38.
Bxd5 {[%clk 00:12:24]} {[%emt 00:01:42]} Ra1+ {[%clk 00:11:12]} {[%emt
00:00:19]} 0-1

[Event "Kvibergspelen September 2019"]
[Site "Prioritet Serneke Arena, Krutvagen 2, Gothenburg, Sweden"]
[Date "2019.09.28"]
[Round "6.19"]
[White "Jonsson, Jacob"]
[Black "Svensson, Mikael"]
[Result "1/2-1/2"]
[TimeControl "15 minutes + 5 seconds per move from move one (Round 1 - 4) / 90 minutes + 30 seconds per move from move one (Round 5 - 8)"]
[WhiteFideId "1726315"]
[BlackFideId "1716433"]
[WhiteElo "2029"]
[BlackElo "2163"]

1. d4 {[%clk 01:30:58]} e6 {[%clk 01:30:54]} {[%emt 00:00:07]} 2. c4 {[%clk
01:31:21]} {[%emt 00:00:07]} f5 {[%clk 01:31:20]} {[%emt 00:00:04]} 3. g3
{[%clk 01:31:46]} {[%emt 00:00:05]} Nf6 {[%clk 01:31:45]} {[%emt 00:00:06]} 4.
Bg2 {[%clk 01:32:10]} {[%emt 00:00:05]} d5 {[%clk 01:31:42]} {[%emt 00:00:33]}
5. Nf3 {[%clk 01:32:31]} {[%emt 00:00:09]} Bd6 {[%clk 01:31:55]} {[%emt
00:00:17]} 6. O-O {[%clk 01:32:27]} {[%emt 00:00:34]} O-O {[%clk 01:32:14]}
{[%emt 00:00:11]} 7. b3 {[%clk 01:32:00]} {[%emt 00:00:57]} b6 {[%clk
01:32:27]} {[%emt 00:00:17]} 8. Nc3 {[%clk 01:29:40]} {[%emt 00:02:50]} c6
{[%clk 01:25:46]} {[%emt 00:07:11]} 9. Ne5 {[%clk 01:23:42]} {[%emt 00:06:28]}
Bb7 {[%clk 01:25:00]} {[%emt 00:01:16]} 10. Bb2 {[%clk 01:22:43]} {[%emt
00:01:28]} Qe7 {[%clk 01:16:06]} {[%emt 00:09:23]} 11. e3 {[%clk 01:20:08]}
{[%emt 00:03:06]} Bxe5 {[%clk 01:07:37]} {[%emt 00:08:59]} 12. dxe5 {[%clk
01:14:11]} {[%emt 00:06:27]} Ng4 {[%clk 01:07:59]} {[%emt 00:00:07]} 13. Qd4
{[%clk 01:08:59]} {[%emt 00:05:43]} dxc4 {[%clk 01:08:04]} {[%emt 00:00:25]} 14.
Qd6 {[%clk 00:58:27]} {[%emt 00:11:02]} Qxd6 {[%clk 01:08:19]} {[%emt
00:00:15]} 15. exd6 {[%clk 00:58:48]} {[%emt 00:00:09]} Nd7 {[%clk 01:02:02]}
{[%emt 00:06:47]} 16. Ne2 {[%clk 00:52:19]} {[%emt 00:06:58]} cxb3 {[%clk
01:00:39]} {[%emt 00:01:53]} 17. Nd4 {[%clk 00:51:29]} {[%emt 00:01:20]} Kf7
{[%clk 00:46:01]} {[%emt 00:15:08]} 18. Nxc6 {[%clk 00:49:06]} {[%emt
00:02:53]} Rac8 {[%clk 00:40:44]} {[%emt 00:05:45]} 19. Ne5+ {[%clk 00:32:22]}
{[%emt 00:17:16]} Ngxe5 {[%clk 00:35:05]} {[%emt 00:06:09]} 20. Bxb7 {[%clk
00:31:43]} {[%emt 00:01:09]} Rb8 {[%clk 00:32:45]} {[%emt 00:02:50]} 21. Ba6
{[%clk 00:29:44]} {[%emt 00:02:29]} bxa2 {[%clk 00:22:44]} {[%emt 00:10:31]} 22.
Rfc1 {[%clk 00:27:50]} {[%emt 00:02:23]} Rfd8 {[%clk 00:15:44]} {[%emt
00:07:30]} 23. Rc7 {[%clk 00:25:31]} {[%emt 00:02:50]} Kg6 {[%clk 00:14:16]}
{[%emt 00:01:57]} 24. Kg2 {[%clk 00:20:12]} {[%emt 00:05:49]} Nf7 {[%clk
00:13:39]} {[%emt 00:01:08]} 25. Bb5 {[%clk 00:17:48]} {[%emt 00:02:55]} Nc5
{[%clk 00:13:03]} {[%emt 00:01:06]} 26. Rxa2 {[%clk 00:16:42]} {[%emt
00:01:36]} a6 {[%clk 00:07:22]} {[%emt 00:06:11]} 27. Bxa6 {[%clk 00:15:41]}
{[%emt 00:01:31]} Ra8 {[%clk 00:05:07]} {[%emt 00:02:45]} 28. Bc4 {[%clk
00:15:22]} {[%emt 00:00:48]} Rxa2 {[%clk 00:05:33]} {[%emt 00:00:06]} 29. Bxa2
{[%clk 00:15:47]} {[%emt 00:00:04]} Rxd6 {[%clk 00:05:50]} {[%emt 00:00:12]} 30.
Ba3 {[%clk 00:15:51]} {[%emt 00:00:26]} 1/2-1/2

[Event "Kvibergspelen September 2019"]
[Site "Prioritet Serneke Arena, Krutvagen 2, Gothenburg, Sweden"]
[Date "2019.09.28"]
[Round "6.20"]
[White "Ask, Josef"]
[Black "Wernberg, Hugo"]
[Result "1/2-1/2"]
[TimeControl "15 minutes + 5 seconds per move from move one (Round 1 - 4) / 90 minutes + 30 seconds per move from move one (Round 5 - 8)"]
[WhiteTitle "FM"]
[WhiteFideId "1704583"]
[BlackFideId "1737511"]
[WhiteElo "2160"]
[BlackElo "1999"]

1. e4 {[%clk 01:30:58]} {[%emt 00:00:01]} c5 {[%clk 01:30:53]} {[%emt
00:00:07]} 2. d4 {[%clk 01:31:15]} {[%emt 00:00:14]} cxd4 {[%clk 01:31:15]}
{[%emt 00:00:08]} 3. c3 {[%clk 01:31:39]} {[%emt 00:00:05]} g6 {[%clk
01:31:39]} {[%emt 00:00:06]} 4. cxd4 {[%clk 01:30:50]} {[%emt 00:01:19]} d5
{[%clk 01:32:02]} {[%emt 00:00:07]} 5. exd5 {[%clk 01:30:46]} {[%emt 00:00:35]}
Nf6 {[%clk 01:32:24]} {[%emt 00:00:08]} 6. Nc3 {[%clk 01:30:45]} {[%emt
00:00:31]} Nxd5 {[%clk 01:32:15]} {[%emt 00:00:38]} 7. Bc4 {[%clk 01:30:36]}
{[%emt 00:00:38]} Nxc3 {[%clk 01:32:22]} {[%emt 00:00:24]} 8. bxc3 {[%clk
01:31:02]} {[%emt 00:00:05]} Bg7 {[%clk 01:32:05]} {[%emt 00:00:47]} 9. Qf3
{[%clk 01:29:55]} {[%emt 00:01:36]} O-O {[%clk 01:31:17]} {[%emt 00:01:19]} 10.
Ne2 {[%clk 01:29:53]} {[%emt 00:00:32]} Bd7 {[%clk 01:20:43]} {[%emt 00:11:04]}
11. O-O {[%clk 01:29:16]} {[%emt 00:01:06]} Qc8 {[%clk 01:19:38]} {[%emt
00:01:35]} 12. Bd3 {[%clk 01:25:10]} {[%emt 00:04:37]} e6 {[%clk 01:17:54]}
{[%emt 00:02:14]} 13. Bb2 {[%clk 01:23:00]} {[%emt 00:02:39]} Bc6 {[%clk
01:16:27]} {[%emt 00:01:57]} 14. Qg3 {[%clk 01:17:50]} {[%emt 00:05:41]} Nd7
{[%clk 01:13:26]} {[%emt 00:03:30]} 15. Rac1 {[%clk 01:15:11]} {[%emt
00:03:09]} Nf6 {[%clk 01:09:43]} {[%emt 00:04:13]} 16. f3 {[%clk 01:13:41]}
{[%emt 00:02:01]} Nh5 {[%clk 01:04:58]} {[%emt 00:05:14]} 17. Qf2 {[%clk
01:12:04]} {[%emt 00:02:07]} Bh6 {[%clk 01:03:22]} {[%emt 00:02:07]} 18. f4
{[%clk 01:10:32]} {[%emt 00:02:01]} Qd7 {[%clk 00:58:24]} {[%emt 00:05:27]} 19.
c4 {[%clk 01:09:05]} {[%emt 00:01:58]} Bg7 {[%clk 00:57:30]} {[%emt 00:01:24]}
20. Rfd1 {[%clk 01:07:35]} {[%emt 00:02:00]} b6 {[%clk 00:55:25]} {[%emt
00:02:35]} 21. h3 {[%clk 01:05:46]} {[%emt 00:02:19]} Qb7 {[%clk 00:53:14]}
{[%emt 00:02:41]} 22. g4 {[%clk 01:01:35]} {[%emt 00:04:40]} Nf6 {[%clk
00:53:25]} {[%emt 00:00:19]} 23. Ng3 {[%clk 01:01:27]} {[%emt 00:00:39]} Ne4
{[%clk 00:45:03]} {[%emt 00:08:52]} 24. Nxe4 {[%clk 00:58:12]} {[%emt
00:03:46]} Bxe4 {[%clk 00:45:23]} {[%emt 00:00:10]} 25. Be2 {[%clk 00:57:57]}
{[%emt 00:00:44]} 1/2-1/2

[Event "Kvibergspelen September 2019"]
[Site "Prioritet Serneke Arena, Krutvagen 2, Gothenburg, Sweden"]
[Date "2019.09.29"]
[Round "7.1"]
[White "Hillarp Persson, Tiger"]
[Black "Hector, Jonny"]
[Result "1-0"]
[TimeControl "15 minutes + 5 seconds per move from move one (Round 1 - 4) / 90 minutes + 30 seconds per move from move one (Round 5 - 8)"]
[WhiteTitle "GM"]
[BlackTitle "GM"]
[WhiteFideId "1700812"]
[BlackFideId "1700090"]
[WhiteElo "2558"]
[BlackElo "2477"]

1. Nf3 {[%clk 01:24:02]} {[%emt 00:06:56]} d5 {[%clk 01:30:51]} {[%emt
00:00:09]} 2. g3 {[%clk 01:24:26]} {[%emt 00:00:08]} Bg4 {[%clk 01:30:47]}
{[%emt 00:00:32]} 3. Bg2 {[%clk 01:24:34]} {[%emt 00:00:22]} Nd7 {[%clk
01:30:25]} {[%emt 00:00:52]} 4. c4 {[%clk 01:17:18]} {[%emt 00:07:47]} e6
{[%clk 01:30:28]} {[%emt 00:00:26]} 5. cxd5 {[%clk 01:17:10]} {[%emt 00:00:39]}
exd5 {[%clk 01:30:52]} {[%emt 00:00:05]} 6. O-O {[%clk 01:15:47]} {[%emt
00:01:54]} Ngf6 {[%clk 01:27:39]} {[%emt 00:03:42]} 7. Nc3 {[%clk 01:15:33]}
{[%emt 00:00:45]} c6 {[%clk 01:24:41]} {[%emt 00:03:27]} 8. d3 {[%clk
01:14:04]} {[%emt 00:02:00]} Bc5 {[%clk 01:23:07]} {[%emt 00:02:04]} 9. Qb3
{[%clk 01:14:24]} {[%emt 00:00:10]} Bb6 {[%clk 01:14:24]} {[%emt 00:09:13]} 10.
Na4 {[%clk 01:13:32]} {[%emt 00:01:22]} O-O {[%clk 01:14:30]} {[%emt 00:00:22]}
11. Nxb6 {[%clk 01:13:11]} {[%emt 00:00:53]} axb6 {[%clk 01:13:50]} {[%emt
00:01:10]} 12. Qc2 {[%clk 01:02:49]} {[%emt 00:10:51]} h6 {[%clk 01:10:50]}
{[%emt 00:03:30]} 13. Nh4 {[%clk 00:51:35]} {[%emt 00:11:45]} Re8 {[%clk
01:06:07]} {[%emt 00:05:13]} 14. e3 {[%clk 00:44:17]} {[%emt 00:07:48]} Nf8
{[%clk 00:52:01]} {[%emt 00:14:34]} 15. h3 {[%clk 00:42:01]} {[%emt 00:02:47]}
Bd7 {[%clk 00:48:35]} {[%emt 00:03:56]} 16. b3 {[%clk 00:39:17]} {[%emt
00:03:15]} c5 {[%clk 00:40:35]} {[%emt 00:08:30]} 17. Bb2 {[%clk 00:38:25]}
{[%emt 00:01:21]} Rc8 {[%clk 00:40:51]} {[%emt 00:00:14]} 18. Rfe1 {[%clk
00:26:46]} {[%emt 00:12:10]} N8h7 {[%clk 00:34:31]} {[%emt 00:06:50]} 19. Rad1
{[%clk 00:24:48]} {[%emt 00:02:28]} Rc6 {[%clk 00:33:13]} {[%emt 00:01:48]} 20.
e4 {[%clk 00:23:45]} {[%emt 00:01:33]} Rce6 {[%clk 00:33:13]} {[%emt 00:00:30]}
21. Qd2 {[%clk 00:17:58]} {[%emt 00:06:17]} Bc6 {[%clk 00:30:16]} {[%emt
00:03:26]} 22. e5 {[%clk 00:18:21]} {[%emt 00:00:07]} Nd7 {[%clk 00:30:16]}
{[%emt 00:00:30]} 23. d4 {[%clk 00:18:14]} {[%emt 00:00:37]} cxd4 {[%clk
00:24:44]} {[%emt 00:06:03]} 24. Qxd4 {[%clk 00:09:45]} {[%emt 00:08:59]} Nhf6
{[%clk 00:24:40]} {[%emt 00:00:33]} 25. f4 {[%clk 00:09:40]} {[%emt 00:00:35]}
Ne4 {[%clk 00:23:06]} {[%emt 00:02:04]} 26. Nf5 {[%clk 00:09:38]} {[%emt
00:00:32]} Qa8 {[%clk 00:20:46]} {[%emt 00:02:49]} 27. a3 {[%clk 00:09:46]}
{[%emt 00:00:25]} Rg6 {[%clk 00:18:32]} {[%emt 00:02:43]} 28. Kh2 {[%clk
00:07:30]} {[%emt 00:02:46]} Ndc5 {[%clk 00:18:35]} {[%emt 00:00:26]} 29. b4
{[%clk 00:07:01]} {[%emt 00:01:00]} Qc8 {[%clk 00:16:56]} {[%emt 00:02:08]} 30.
Nd6 {[%clk 00:04:13]} {[%emt 00:03:19]} Nxd6 {[%clk 00:15:49]} {[%emt
00:01:37]} 31. exd6 {[%clk 00:04:39]} {[%emt 00:00:04]} Nd7 {[%clk 00:12:23]}
{[%emt 00:03:55]} 32. f5 {[%clk 00:03:48]} {[%emt 00:01:22]} Rf6 {[%clk
00:11:44]} {[%emt 00:01:08]} 33. Qf4 {[%clk 00:01:35]} {[%emt 00:02:44]} Rxe1
{[%clk 00:10:38]} {[%emt 00:01:36]} 34. Rxe1 {[%clk 00:01:59]} {[%emt
00:00:05]} d4 {[%clk 00:10:41]} {[%emt 00:00:27]} 35. Bf1 {[%clk 00:00:51]}
{[%emt 00:01:39]} Nf8 {[%clk 00:10:06]} {[%emt 00:01:04]} 36. g4 {[%clk
00:01:06]} {[%emt 00:00:15]} Ne6 {[%clk 00:07:08]} {[%emt 00:03:28]} 37. Rxe6
{[%clk 00:00:47]} {[%emt 00:00:50]} fxe6 {[%clk 00:07:24]} {[%emt 00:00:13]} 38.
Bxd4 {[%clk 00:01:02]} {[%emt 00:00:15]} Rf7 {[%clk 00:07:02]} {[%emt
00:00:52]} 39. Qe5 {[%clk 00:01:07]} {[%emt 00:00:26]} Bd7 {[%clk 00:06:55]}
{[%emt 00:00:37]} 40. Bg2 {[%clk 00:01:06]} {[%emt 00:00:31]} Kh8 {[%clk
00:06:11]} {[%emt 00:01:14]} 41. fxe6 {[%clk 00:00:54]} {[%emt 00:00:42]} Bxe6
{[%clk 00:06:33]} {[%emt 00:00:08]} 42. Qe3 {[%clk 00:00:56]} {[%emt 00:00:28]}
Qd7 {[%clk 00:05:41]} {[%emt 00:01:21]} 43. Be5 {[%clk 00:01:15]} {[%emt
00:00:12]} b5 {[%clk 00:04:05]} {[%emt 00:02:06]} 44. Qxh6+ {[%clk 00:01:41]}
{[%emt 00:00:04]} Kg8 {[%clk 00:04:32]} {[%emt 00:00:02]} 45. Qe3 {[%clk
00:01:45]} {[%emt 00:00:27]} Bc4 {[%clk 00:04:43]} {[%emt 00:00:19]} 46. Qd4
{[%clk 00:01:48]} {[%emt 00:00:27]} Qe6 {[%clk 00:04:19]} {[%emt 00:00:54]} 47.
Kg3 {[%clk 00:01:28]} {[%emt 00:00:51]} Ba2 {[%clk 00:03:05]} {[%emt 00:01:43]}
48. Be4 {[%clk 00:00:55]} {[%emt 00:01:04]} Qb3+ {[%clk 00:00:54]} {[%emt
00:02:40]} 49. Kh4 {[%clk 00:01:14]} {[%emt 00:00:11]} g5+ {[%clk 00:00:44]}
{[%emt 00:00:40]} 50. Kxg5 {[%clk 00:01:30]} {[%emt 00:00:14]} Qxh3 {[%clk
00:01:09]} {[%emt 00:00:05]} 51. d7 {[%clk 00:01:16]} {[%emt 00:00:44]} Rxd7
{[%clk 00:01:18]} {[%emt 00:00:21]} 52. Qxd7 {[%clk 00:01:38]} {[%emt
00:00:09]} Qe3+ {[%clk 00:01:41]} {[%emt 00:00:06]} 53. Kf6 {[%clk 00:00:52]}
{[%emt 00:01:16]} Qh6+ {[%clk 00:00:59]} {[%emt 00:01:12]} 54. Kf5 {[%clk
00:01:01]} {[%emt 00:00:21]} 1-0

[Event "Kvibergspelen September 2019"]
[Site "Prioritet Serneke Arena, Krutvagen 2, Gothenburg, Sweden"]
[Date "2019.09.29"]
[Round "7.3"]
[White "Andersson, Lars"]
[Black "Pantzar, Milton"]
[Result "1/2-1/2"]
[TimeControl "15 minutes + 5 seconds per move from move one (Round 1 - 4) / 90 minutes + 30 seconds per move from move one (Round 5 - 8)"]
[BlackTitle "FM"]
[WhiteFideId "1706772"]
[BlackFideId "1721003"]
[WhiteElo "2029"]
[BlackElo "2376"]

1. d4 {[%clk 01:30:57]} {[%emt 00:00:02]} d5 {[%clk 01:30:53]} {[%emt
00:00:07]} 2. Bf4 {[%clk 01:31:18]} {[%emt 00:00:09]} Nf6 {[%clk 01:31:15]}
{[%emt 00:00:08]} 3. e3 {[%clk 01:31:32]} {[%emt 00:00:16]} e6 {[%clk
01:31:02]} {[%emt 00:00:43]} 4. Nf3 {[%clk 01:31:05]} {[%emt 00:00:57]} c5
{[%clk 01:31:23]} {[%emt 00:00:09]} 5. c3 {[%clk 01:31:27]} {[%emt 00:00:08]}
Be7 {[%clk 01:31:47]} {[%emt 00:00:06]} 6. Nbd2 {[%clk 01:31:34]} {[%emt
00:00:24]} O-O {[%clk 01:32:02]} {[%emt 00:00:14]} 7. Bd3 {[%clk 01:29:49]}
{[%emt 00:02:15]} Nh5 {[%clk 01:32:00]} {[%emt 00:00:32]} 8. Bg3 {[%clk
01:30:10]} {[%emt 00:00:09]} Nc6 {[%clk 01:31:54]} {[%emt 00:00:36]} 9. Qe2
{[%clk 01:24:15]} {[%emt 00:06:25]} h6 {[%clk 01:28:29]} {[%emt 00:03:56]} 10.
Ne5 {[%clk 01:16:33]} {[%emt 00:08:11]} Nxg3 {[%clk 01:23:50]} {[%emt
00:05:09]} 11. hxg3 {[%clk 01:16:56]} {[%emt 00:00:07]} Nxe5 {[%clk 01:14:20]}
{[%emt 00:10:00]} 12. dxe5 {[%clk 01:17:19]} {[%emt 00:00:07]} b5 {[%clk
01:08:54]} {[%emt 00:05:56]} 13. O-O-O {[%clk 01:08:00]} {[%emt 00:09:49]} b4
{[%clk 00:54:18]} {[%emt 00:15:07]} 14. c4 {[%clk 00:44:11]} {[%emt 00:24:18]}
f5 {[%clk 00:47:25]} {[%emt 00:07:23]} 15. exf6 {[%clk 00:43:17]} {[%emt
00:01:25]} Bxf6 {[%clk 00:46:57]} {[%emt 00:00:58]} 16. Bc2 {[%clk 00:32:04]}
{[%emt 00:11:43]} Qc7 {[%clk 00:31:00]} {[%emt 00:16:27]} 17. f4 {[%clk
00:21:50]} {[%emt 00:10:43]} Bb7 {[%clk 00:26:14]} {[%emt 00:05:17]} 18. Qd3
{[%clk 00:21:19]} {[%emt 00:01:00]} Kf7 {[%clk 00:26:30]} {[%emt 00:00:14]} 19.
Qg6+ {[%clk 00:12:50]} {[%emt 00:08:59]} Ke7 {[%clk 00:26:52]} 1/2-1/2